[Event "Titled Tuesday Blitz July 4 Late 2023"]
[White "Zeltsan, Joseph"]
[Black "Cooper, Aaron"]
[WhiteFideId "30932980"]
[BlackFideId "2634945"]
[WhiteElo "2505"]
[BlackElo "2204"]
[Result "1-0"]
[Round "3"]
[TimeControl "180+2"]
[Date "2023.07.04"]
[WhiteClock "0:00:41"]
[BlackClock "0:00:00"]
[Board "132"]

1. d4 {[%clk 0:03:00]}  Nf6 {[%clk 0:02:59]} 2. c4 {[%clk 0:03:01]}  e6 {[%clk 0:03:00]} 3. Nf3 {[%clk 0:03:02]}  d5 {[%clk 0:03:00]} 4. Nc3 {[%clk 0:03:02]}  Be7 {[%clk 0:02:58]} 5. Bg5 {[%clk 0:03:02]}  c6 {[%clk 0:02:57]} 6. e3 {[%clk 0:03:03]}  Nbd7 {[%clk 0:02:57]} 7. Qc2 {[%clk 0:03:03]}  O-O {[%clk 0:02:57]} 8. Bd3 {[%clk 0:03:03]}  dxc4 {[%clk 0:02:55]} 9. Bxc4 {[%clk 0:03:03]}  b5 {[%clk 0:02:55]} 10. Bd3 {[%clk 0:03:04]}  Bb7 {[%clk 0:02:53]} 11. O-O {[%clk 0:03:03]}  b4 {[%clk 0:02:39]} 12. Na4 {[%clk 0:02:56]}  c5 {[%clk 0:02:27]} 13. Bxf6 {[%clk 0:02:56]}  Nxf6 {[%clk 0:02:22]} 14. Nxc5 {[%clk 0:02:55]}  Bxf3 {[%clk 0:02:19]} 15. gxf3 {[%clk 0:02:55]}  Rc8 {[%clk 0:02:18]} 16. Rac1 {[%clk 0:02:52]}  Qd5 {[%clk 0:02:08]} 17. Be4 {[%clk 0:02:39]}  Qg5+ {[%clk 0:02:04]} 18. Kh1 {[%clk 0:02:39]}  Nxe4 {[%clk 0:01:55]} 19. Qxe4 {[%clk 0:02:32]}  Bxc5 {[%clk 0:01:53]} 20. Rg1 {[%clk 0:02:31]}  Qh5 {[%clk 0:01:51]} 21. dxc5 {[%clk 0:02:28]}  Rxc5 {[%clk 0:01:52]} 22. Rxg7+ {[%clk 0:02:12]}  Kxg7 {[%clk 0:01:45]} 23. Qd4+ {[%clk 0:02:12]}  e5 {[%clk 0:01:34]} 24. Qxc5 {[%clk 0:02:00]}  Qxf3+ {[%clk 0:01:33]} 25. Kg1 {[%clk 0:02:01]}  Rg8 {[%clk 0:01:28]} 26. Kf1 {[%clk 0:01:54]}  Kh6 {[%clk 0:01:27]} 27. Qc6+ {[%clk 0:01:44]}  Qxc6 {[%clk 0:01:26]} 28. Rxc6+ {[%clk 0:01:45]}  Rg6 {[%clk 0:01:10]} 29. Rc7 {[%clk 0:01:26]}  Ra6 {[%clk 0:01:09]} 30. a3 {[%clk 0:01:26]}  bxa3 {[%clk 0:01:08]} 31. bxa3 {[%clk 0:01:27]}  Rxa3 {[%clk 0:01:08]} 32. Rxf7 {[%clk 0:01:28]}  Kg6 {[%clk 0:01:03]} 33. Re7 {[%clk 0:01:28]}  Ra5 {[%clk 0:01:02]} 34. Kg2 {[%clk 0:01:26]}  h5 {[%clk 0:01:03]} 35. Kf3 {[%clk 0:01:24]}  Kf6 {[%clk 0:01:03]} 36. Rh7 {[%clk 0:01:24]}  Kg6 {[%clk 0:01:03]} 37. Rb7 {[%clk 0:01:25]}  Ra4 {[%clk 0:00:58]} 38. Re7 {[%clk 0:01:23]}  Kf6 {[%clk 0:00:58]} 39. Rh7 {[%clk 0:01:18]}  Kg6 {[%clk 0:00:58]} 40. Rc7 {[%clk 0:01:16]}  Kf5 {[%clk 0:00:58]} 41. Rf7+ {[%clk 0:01:04]}  Kg6 {[%clk 0:00:58]} 42. Rf8 {[%clk 0:01:05]}  a5 {[%clk 0:00:54]} 43. Re8 {[%clk 0:00:55]}  Kf5 {[%clk 0:00:53]} 44. e4+ {[%clk 0:00:56]}  Kf6 {[%clk 0:00:53]} 45. Rf8+ {[%clk 0:00:56]}  Ke6 {[%clk 0:00:50]} 46. Rh8 {[%clk 0:00:52]}  Ra3+ {[%clk 0:00:48]} 47. Kg2 {[%clk 0:00:53]}  Ra4 {[%clk 0:00:45]} 48. f3 {[%clk 0:00:46]}  Ra2+ {[%clk 0:00:45]} 49. Kg3 {[%clk 0:00:47]}  a4 {[%clk 0:00:38]} 50. Rxh5 {[%clk 0:00:47]}  a3 {[%clk 0:00:36]} 51. Rh6+ {[%clk 0:00:47]}  Kf7 {[%clk 0:00:34]} 52. Ra6 {[%clk 0:00:48]}  Ke7 {[%clk 0:00:31]} 53. h4 {[%clk 0:00:44]}  Kf7 {[%clk 0:00:31]} 54. Kg4 {[%clk 0:00:44]}  Rg2+ {[%clk 0:00:30]} 55. Kf5 {[%clk 0:00:44]}  a2 {[%clk 0:00:25]} 56. Ra7+ {[%clk 0:00:45]}  Kg8 {[%clk 0:00:25]} 57. Kxe5 {[%clk 0:00:45]}  Rh2 {[%clk 0:00:23]} 58. f4 {[%clk 0:00:46]}  Rxh4 {[%clk 0:00:17]} 59. Rxa2 {[%clk 0:00:45]}  Rh5+ {[%clk 0:00:16]} 60. f5 {[%clk 0:00:45]}  Kf8 {[%clk 0:00:17]} 61. Ke6 {[%clk 0:00:45]}  Rh6+ {[%clk 0:00:15]} 62. f6 {[%clk 0:00:45]}  Kg8 {[%clk 0:00:13]} 63. e5 {[%clk 0:00:44]}  Kh8 {[%clk 0:00:00]} 64. Ke7 {[%clk 0:00:41]} 1-0


[Site "https://www.chess.com"]

[Event "Titled Tuesday Blitz July 4 Late 2023"]
[White "only_strong_moves"]
[Black "Curtis, John"]
[BlackFideId "3200256"]
[WhiteElo "2496"]
[BlackElo "2114"]
[Result "1-0"]
[Round "3"]
[TimeControl "180+2"]
[Date "2023.07.04"]
[WhiteClock "0:00:52"]
[BlackClock "0:00:07"]
[Board "136"]

1. d4 {[%clk 0:03:00]}  Nf6 {[%clk 0:02:59]} 2. c4 {[%clk 0:03:01]}  e6 {[%clk 0:02:57]} 3. Nf3 {[%clk 0:03:01]}  d5 {[%clk 0:02:58]} 4. Nc3 {[%clk 0:03:01]}  c5 {[%clk 0:02:57]} 5. cxd5 {[%clk 0:03:01]}  exd5 {[%clk 0:02:57]} 6. g3 {[%clk 0:03:00]}  Nc6 {[%clk 0:02:56]} 7. Bg2 {[%clk 0:03:00]}  cxd4 {[%clk 0:02:54]} 8. Nxd4 {[%clk 0:03:00]}  Bc5 {[%clk 0:02:53]} 9. Nxc6 {[%clk 0:02:35]}  bxc6 {[%clk 0:02:52]} 10. O-O {[%clk 0:02:35]}  O-O {[%clk 0:02:48]} 11. Na4 {[%clk 0:02:35]}  Bd6 {[%clk 0:02:40]} 12. Be3 {[%clk 0:02:12]}  Re8 {[%clk 0:02:20]} 13. Qd3 {[%clk 0:02:11]}  a5 {[%clk 0:02:13]} 14. Rfe1 {[%clk 0:02:01]}  Ba6 {[%clk 0:02:12]} 15. Qc2 {[%clk 0:01:57]}  Bb5 {[%clk 0:02:12]} 16. Nc3 {[%clk 0:01:57]}  Rxe3 {[%clk 0:01:54]} 17. Nxb5 {[%clk 0:01:53]}  cxb5 {[%clk 0:01:30]} 18. fxe3 {[%clk 0:01:52]}  Qe7 {[%clk 0:01:30]} 19. Qd3 {[%clk 0:01:37]}  Bc5 {[%clk 0:01:13]} 20. Bf3 {[%clk 0:01:30]}  b4 {[%clk 0:01:03]} 21. Kg2 {[%clk 0:01:28]}  Bxe3 {[%clk 0:00:59]} 22. Rad1 {[%clk 0:01:25]}  Rd8 {[%clk 0:00:55]} 23. Qb5 {[%clk 0:01:23]}  d4 {[%clk 0:00:42]} 24. Qxa5 {[%clk 0:01:21]}  g6 {[%clk 0:00:40]} 25. Rd3 {[%clk 0:01:19]}  Kg7 {[%clk 0:00:18]} 26. Red1 {[%clk 0:01:19]}  Re8 {[%clk 0:00:15]} 27. Rxd4 {[%clk 0:01:04]}  h6 {[%clk 0:00:14]} 28. Qxb4 {[%clk 0:01:00]}  Bxd4 {[%clk 0:00:14]} 29. Qxe7 {[%clk 0:00:59]}  Rxe7 {[%clk 0:00:14]} 30. Rxd4 {[%clk 0:01:00]}  g5 {[%clk 0:00:15]} 31. b4 {[%clk 0:00:56]}  h5 {[%clk 0:00:15]} 32. h3 {[%clk 0:00:55]}  Rc7 {[%clk 0:00:13]} 33. a4 {[%clk 0:00:53]}  Rc2 {[%clk 0:00:13]} 34. Kf2 {[%clk 0:00:53]}  Rb2 {[%clk 0:00:12]} 35. b5 {[%clk 0:00:53]}  Ra2 {[%clk 0:00:12]} 36. b6 {[%clk 0:00:52]}  Kf8 {[%clk 0:00:07]} 37. b7 {[%clk 0:00:52]} 1-0


[Site "https://www.chess.com"]

[Event "Titled Tuesday Blitz July 4 Late 2023"]
[White "Vargas, Mauricio"]
[Black "Dixit, Nikhil"]
[WhiteFideId "4404572"]
[BlackFideId "5059534"]
[WhiteElo "1881"]
[BlackElo "2493"]
[Result "0-1"]
[Round "3"]
[TimeControl "180+2"]
[Date "2023.07.04"]
[WhiteClock "0:00:00"]
[BlackClock "0:00:24"]
[Board "137"]

1. e4 {[%clk 0:03:00]}  c5 {[%clk 0:02:57]} 2. Nc3 {[%clk 0:03:00]}  e5 {[%clk 0:02:54]} 3. f4 {[%clk 0:03:00]}  exf4 {[%clk 0:02:54]} 4. Nf3 {[%clk 0:03:00]}  Nc6 {[%clk 0:02:52]} 5. Bc4 {[%clk 0:02:54]}  g5 {[%clk 0:02:48]} 6. d3 {[%clk 0:02:52]}  g4 {[%clk 0:02:41]} 7. O-O {[%clk 0:02:27]}  gxf3 {[%clk 0:02:36]} 8. Qxf3 {[%clk 0:02:26]}  Qh4 {[%clk 0:02:01]} 9. Bxf4 {[%clk 0:02:22]}  Nd4 {[%clk 0:02:00]} 10. Qd1 {[%clk 0:01:40]}  Ne6 {[%clk 0:01:50]} 11. Bg3 {[%clk 0:01:32]}  Qg5 {[%clk 0:01:40]} 12. Nd5 {[%clk 0:01:28]}  Bg7 {[%clk 0:01:20]} 13. Qf3 {[%clk 0:01:26]}  Nh6 {[%clk 0:01:16]} 14. Nc7+ {[%clk 0:00:30]}  Kd8 {[%clk 0:01:09]} 15. Nxe6+ {[%clk 0:00:20]}  fxe6 {[%clk 0:00:51]} 16. Kh1 {[%clk 0:00:15]}  Rf8 {[%clk 0:00:39]} 17. Qe2 {[%clk 0:00:11]}  Rxf1+ {[%clk 0:00:34]} 18. Rxf1 {[%clk 0:00:11]}  Ke8 {[%clk 0:00:32]} 19. Qf2 {[%clk 0:00:10]}  Qg6 {[%clk 0:00:25]} 20. Bf4 {[%clk 0:00:07]}  Nf7 {[%clk 0:00:25]} 21. c3 {[%clk 0:00:02]}  a6 {[%clk 0:00:25]} 22. Bb3 {[%clk 0:00:02]}  b5 {[%clk 0:00:25]} 23. Bc2 {[%clk 0:00:03]}  d6 {[%clk 0:00:25]} 24. d4 {[%clk 0:00:03]}  cxd4 {[%clk 0:00:24]} 25. e5 {[%clk 0:00:00]}  Qh5 {[%clk 0:00:24]} 0-1


[Site "https://www.chess.com"]

[Event "Titled Tuesday Blitz July 4 Late 2023"]
[White "Gyulamiryan-koryun"]
[Black "Silva, Caio Henrique Angelico"]
[BlackFideId "22777210"]
[WhiteElo "1722"]
[BlackElo "2490"]
[Result "0-1"]
[Round "3"]
[TimeControl "180+2"]
[Date "2023.07.04"]
[WhiteClock "0:00:34"]
[BlackClock "0:00:56"]
[Board "138"]

1. e4 {[%clk 0:03:00]}  c6 {[%clk 0:03:00]} 2. Nc3 {[%clk 0:02:59]}  d5 {[%clk 0:03:01]} 3. Nf3 {[%clk 0:02:58]}  Bg4 {[%clk 0:03:00]} 4. h3 {[%clk 0:02:57]}  Bxf3 {[%clk 0:03:00]} 5. Qxf3 {[%clk 0:02:56]}  e6 {[%clk 0:03:01]} 6. exd5 {[%clk 0:02:56]}  cxd5 {[%clk 0:03:02]} 7. Bb5+ {[%clk 0:02:54]}  Nc6 {[%clk 0:03:01]} 8. O-O {[%clk 0:02:53]}  Nf6 {[%clk 0:02:57]} 9. Re1 {[%clk 0:02:51]}  Be7 {[%clk 0:02:55]} 10. d3 {[%clk 0:02:50]}  O-O {[%clk 0:02:55]} 11. a3 {[%clk 0:02:42]}  Nd4 {[%clk 0:02:54]} 12. Qd1 {[%clk 0:02:39]}  a6 {[%clk 0:02:52]} 13. Ba4 {[%clk 0:02:38]}  b5 {[%clk 0:02:52]} 14. Bb3 {[%clk 0:02:38]}  Nxb3 {[%clk 0:02:52]} 15. cxb3 {[%clk 0:02:38]}  Rc8 {[%clk 0:02:44]} 16. Bf4 {[%clk 0:02:36]}  Bd6 {[%clk 0:02:40]} 17. Be5 {[%clk 0:02:32]}  Bxe5 {[%clk 0:02:37]} 18. Rxe5 {[%clk 0:02:31]}  Nd7 {[%clk 0:02:38]} 19. Re1 {[%clk 0:02:26]}  Qf6 {[%clk 0:02:36]} 20. Qd2 {[%clk 0:02:22]}  Ne5 {[%clk 0:02:35]} 21. f4 {[%clk 0:02:15]}  Nc6 {[%clk 0:02:35]} 22. Ne2 {[%clk 0:02:08]}  Rc7 {[%clk 0:02:32]} 23. Rac1 {[%clk 0:02:06]}  Rfc8 {[%clk 0:02:32]} 24. Rc5 {[%clk 0:01:57]}  Nd4 {[%clk 0:02:28]} 25. Rxc7 {[%clk 0:01:54]}  Nxe2+ {[%clk 0:02:24]} 26. Rxe2 {[%clk 0:01:44]}  Qd4+ {[%clk 0:02:13]} 27. Qe3 {[%clk 0:01:42]}  Qxe3+ {[%clk 0:02:13]} 28. Rxe3 {[%clk 0:01:42]}  Rxc7 {[%clk 0:02:14]} 29. Kf2 {[%clk 0:01:31]}  Kf8 {[%clk 0:02:08]} 30. Re2 {[%clk 0:01:29]}  Ke7 {[%clk 0:02:08]} 31. d4 {[%clk 0:01:29]}  Kd6 {[%clk 0:02:06]} 32. Ke3 {[%clk 0:01:29]}  Rc1 {[%clk 0:02:03]} 33. Kd3 {[%clk 0:01:26]}  Rf1 {[%clk 0:02:01]} 34. g3 {[%clk 0:01:23]}  Rg1 {[%clk 0:01:36]} 35. g4 {[%clk 0:01:18]}  f6 {[%clk 0:01:31]} 36. Rf2 {[%clk 0:01:13]}  Rg3+ {[%clk 0:01:30]} 37. Kc2 {[%clk 0:01:09]}  Rxh3 {[%clk 0:01:30]} 38. f5 {[%clk 0:01:09]}  Rg3 {[%clk 0:01:13]} 39. Re2 {[%clk 0:01:07]}  e5 {[%clk 0:01:10]} 40. dxe5+ {[%clk 0:01:02]}  fxe5 {[%clk 0:01:11]} 41. Rh2 {[%clk 0:01:00]}  Rxg4 {[%clk 0:01:08]} 42. Rxh7 {[%clk 0:00:58]}  Kc5 {[%clk 0:01:07]} 43. Rh8 {[%clk 0:00:55]}  Kd4 {[%clk 0:01:06]} 44. Rg8 {[%clk 0:00:52]}  Rg2+ {[%clk 0:01:04]} 45. Kb1 {[%clk 0:00:49]}  Rf2 {[%clk 0:00:59]} 46. Rxg7 {[%clk 0:00:47]}  Rxf5 {[%clk 0:00:59]} 47. Rg6 {[%clk 0:00:43]}  Rf1+ {[%clk 0:00:58]} 48. Kc2 {[%clk 0:00:42]}  Rf2+ {[%clk 0:00:58]} 49. Kc1 {[%clk 0:00:41]}  e4 {[%clk 0:00:56]} 50. Rxa6 {[%clk 0:00:40]}  Kd3 {[%clk 0:00:57]} 51. a4 {[%clk 0:00:34]}  Rf1# {[%clk 0:00:56]} 0-1


[Site "https://www.chess.com"]

[Event "Titled Tuesday Blitz July 4 Late 2023"]
[White "Koc, Przemyslaw"]
[Black "Martinez Ramirez, Lennis"]
[WhiteFideId "1109081"]
[BlackFideId "3509079"]
[WhiteElo "2442"]
[BlackElo "2614"]
[Result "1-0"]
[Round "3"]
[TimeControl "180+2"]
[Date "2023.07.04"]
[WhiteClock "0:00:37"]
[BlackClock "0:00:00"]
[Board "139"]

1. d4 {[%clk 0:03:00]}  c5 {[%clk 0:02:53]} 2. c3 {[%clk 0:02:58]}  Nf6 {[%clk 0:02:52]} 3. Nf3 {[%clk 0:02:57]}  d5 {[%clk 0:02:51]} 4. e3 {[%clk 0:02:57]}  Nc6 {[%clk 0:02:47]} 5. Bd3 {[%clk 0:02:57]}  Bg4 {[%clk 0:02:33]} 6. Nbd2 {[%clk 0:02:56]}  a6 {[%clk 0:02:20]} 7. h3 {[%clk 0:02:54]}  Bh5 {[%clk 0:02:06]} 8. O-O {[%clk 0:02:48]}  e6 {[%clk 0:02:05]} 9. Qc2 {[%clk 0:02:23]}  Bg6 {[%clk 0:02:01]} 10. dxc5 {[%clk 0:02:19]}  Bxc5 {[%clk 0:01:30]} 11. b4 {[%clk 0:02:19]}  Bd6 {[%clk 0:01:30]} 12. Bb2 {[%clk 0:02:18]}  Rc8 {[%clk 0:01:29]} 13. a3 {[%clk 0:02:17]}  O-O {[%clk 0:01:26]} 14. Bxg6 {[%clk 0:02:16]}  hxg6 {[%clk 0:01:26]} 15. c4 {[%clk 0:02:13]}  e5 {[%clk 0:01:25]} 16. Qb3 {[%clk 0:02:09]}  e4 {[%clk 0:01:24]} 17. Nd4 {[%clk 0:02:04]}  Qe7 {[%clk 0:01:13]} 18. cxd5 {[%clk 0:02:01]}  Ne5 {[%clk 0:01:08]} 19. Rac1 {[%clk 0:01:55]}  Nd3 {[%clk 0:01:07]} 20. Rxc8 {[%clk 0:01:55]}  Rxc8 {[%clk 0:01:07]} 21. Ba1 {[%clk 0:01:51]}  Qe5 {[%clk 0:01:06]} 22. N4f3 {[%clk 0:01:48]}  Qf5 {[%clk 0:01:02]} 23. Nd4 {[%clk 0:01:32]}  Qe5 {[%clk 0:00:27]} 24. N4f3 {[%clk 0:01:32]}  Qe8 {[%clk 0:00:27]} 25. Nd4 {[%clk 0:01:21]}  g5 {[%clk 0:00:23]} 26. Nf5 {[%clk 0:01:16]}  Bf8 {[%clk 0:00:23]} 27. Bxf6 {[%clk 0:01:11]}  gxf6 {[%clk 0:00:22]} 28. Ng3 {[%clk 0:01:07]}  f5 {[%clk 0:00:19]} 29. Nxf5 {[%clk 0:01:07]}  Qe5 {[%clk 0:00:19]} 30. Ng3 {[%clk 0:01:05]}  f5 {[%clk 0:00:19]} 31. f4 {[%clk 0:00:56]}  gxf4 {[%clk 0:00:15]} 32. exf4 {[%clk 0:00:53]}  Qd4+ {[%clk 0:00:16]} 33. Kh2 {[%clk 0:00:52]}  Rc3 {[%clk 0:00:15]} 34. Qd1 {[%clk 0:00:50]}  Nf2 {[%clk 0:00:15]} 35. Qh5 {[%clk 0:00:49]}  Qxd2 {[%clk 0:00:14]} 36. Qg6+ {[%clk 0:00:48]}  Bg7 {[%clk 0:00:14]} 37. Nxf5 {[%clk 0:00:49]}  Rxh3+ {[%clk 0:00:12]} 38. gxh3 {[%clk 0:00:47]}  Ng4+ {[%clk 0:00:13]} 39. Kg3 {[%clk 0:00:46]}  Qh2+ {[%clk 0:00:07]} 40. Kxg4 {[%clk 0:00:46]}  Qg2+ {[%clk 0:00:07]} 41. Ng3 {[%clk 0:00:42]}  e3 {[%clk 0:00:05]} 42. Qe6+ {[%clk 0:00:39]}  Kh7 {[%clk 0:00:05]} 43. Qxe3 {[%clk 0:00:40]}  Qb2 {[%clk 0:00:02]} 44. d6 {[%clk 0:00:38]}  Bf6 {[%clk 0:00:00]} 45. d7 {[%clk 0:00:37]} 1-0


[Site "https://www.chess.com"]

[Event "Titled Tuesday Blitz July 4 Late 2023"]
[White "Kochiev, Ivan"]
[Black "Lalanne, Pablo"]
[WhiteFideId "2917890"]
[BlackFideId "112151"]
[WhiteElo "2539"]
[BlackElo "2428"]
[Result "1-0"]
[Round "3"]
[TimeControl "180+2"]
[Date "2023.07.04"]
[WhiteClock "0:00:07"]
[BlackClock "0:00:08"]
[Board "141"]

1. e4 {[%clk 0:03:00]}  c5 {[%clk 0:02:59]} 2. Nf3 {[%clk 0:02:59]}  d6 {[%clk 0:02:59]} 3. d4 {[%clk 0:02:59]}  cxd4 {[%clk 0:03:00]} 4. Nxd4 {[%clk 0:03:00]}  Nf6 {[%clk 0:03:00]} 5. f3 {[%clk 0:03:01]}  e5 {[%clk 0:03:00]} 6. Nb3 {[%clk 0:03:01]}  Be6 {[%clk 0:02:54]} 7. c4 {[%clk 0:03:01]}  Nbd7 {[%clk 0:02:54]} 8. Nc3 {[%clk 0:03:01]}  Rc8 {[%clk 0:02:54]} 9. Nd5 {[%clk 0:02:55]}  b5 {[%clk 0:02:42]} 10. cxb5 {[%clk 0:02:43]}  Bxd5 {[%clk 0:02:36]} 11. exd5 {[%clk 0:02:35]}  Nb6 {[%clk 0:02:33]} 12. Be2 {[%clk 0:02:28]}  Be7 {[%clk 0:02:25]} 13. Bg5 {[%clk 0:02:24]}  Nbxd5 {[%clk 0:02:24]} 14. O-O {[%clk 0:02:21]}  Qb6+ {[%clk 0:02:22]} 15. Kh1 {[%clk 0:02:20]}  Ne3 {[%clk 0:02:03]} 16. Bxe3 {[%clk 0:02:20]}  Qxe3 {[%clk 0:02:03]} 17. Na5 {[%clk 0:02:10]}  d5 {[%clk 0:01:49]} 18. Nc6 {[%clk 0:01:59]}  Bd6 {[%clk 0:01:43]} 19. Bc4 {[%clk 0:01:31]}  Qc5 {[%clk 0:01:28]} 20. Bd3 {[%clk 0:01:25]}  O-O {[%clk 0:01:19]} 21. Rc1 {[%clk 0:01:21]}  Qe3 {[%clk 0:01:06]} 22. Re1 {[%clk 0:01:20]}  Qh6 {[%clk 0:01:00]} 23. Bf5 {[%clk 0:01:11]}  Rc7 {[%clk 0:00:53]} 24. Bh3 {[%clk 0:00:53]}  e4 {[%clk 0:00:42]} 25. Rc3 {[%clk 0:00:48]}  Qf4 {[%clk 0:00:23]} 26. g3 {[%clk 0:00:48]}  Qh6 {[%clk 0:00:22]} 27. Kg2 {[%clk 0:00:45]}  exf3+ {[%clk 0:00:21]} 28. Rxf3 {[%clk 0:00:40]}  a6 {[%clk 0:00:14]} 29. Nd4 {[%clk 0:00:35]}  Bb4 {[%clk 0:00:11]} 30. Ref1 {[%clk 0:00:24]}  Qd2+ {[%clk 0:00:09]} 31. Qxd2 {[%clk 0:00:22]}  Bxd2 {[%clk 0:00:10]} 32. bxa6 {[%clk 0:00:23]}  Rc4 {[%clk 0:00:10]} 33. Nf5 {[%clk 0:00:21]}  Rb8 {[%clk 0:00:08]} 34. b3 {[%clk 0:00:18]}  Rc2 {[%clk 0:00:07]} 35. R1f2 {[%clk 0:00:17]}  Ne4 {[%clk 0:00:07]} 36. Re2 {[%clk 0:00:13]}  g6 {[%clk 0:00:07]} 37. Ne7+ {[%clk 0:00:13]}  Kf8 {[%clk 0:00:07]} 38. Nxd5 {[%clk 0:00:12]}  Rd8 {[%clk 0:00:06]} 39. Nb4 {[%clk 0:00:08]}  Rb2 {[%clk 0:00:04]} 40. Rxe4 {[%clk 0:00:07]}  Bxb4+ {[%clk 0:00:04]} 41. Rf2 {[%clk 0:00:06]}  Rxf2+ {[%clk 0:00:04]} 42. Kxf2 {[%clk 0:00:07]}  Rd2+ {[%clk 0:00:04]} 43. Re2 {[%clk 0:00:07]}  Rxe2+ {[%clk 0:00:04]} 44. Kxe2 {[%clk 0:00:08]}  Bc5 {[%clk 0:00:04]} 45. a3 {[%clk 0:00:07]}  Ke7 {[%clk 0:00:05]} 46. b4 {[%clk 0:00:07]}  Ba7 {[%clk 0:00:04]} 47. Kd3 {[%clk 0:00:07]}  Kd6 {[%clk 0:00:05]} 48. Kc4 {[%clk 0:00:07]}  Kc6 {[%clk 0:00:05]} 49. a4 {[%clk 0:00:07]}  Kb6 {[%clk 0:00:06]} 50. Bc8 {[%clk 0:00:07]}  f5 {[%clk 0:00:05]} 51. a5+ {[%clk 0:00:06]}  Kc7 {[%clk 0:00:05]} 52. Be6 {[%clk 0:00:06]}  Bg1 {[%clk 0:00:06]} 53. h3 {[%clk 0:00:05]}  Bh2 {[%clk 0:00:06]} 54. g4 {[%clk 0:00:05]}  f4 {[%clk 0:00:07]} 55. b5 {[%clk 0:00:04]}  Bg1 {[%clk 0:00:06]} 56. Bd5 {[%clk 0:00:03]}  g5 {[%clk 0:00:06]} 57. b6+ {[%clk 0:00:02]}  Bxb6 {[%clk 0:00:07]} 58. axb6+ {[%clk 0:00:03]}  Kxb6 {[%clk 0:00:07]} 59. Bb7 {[%clk 0:00:04]}  f3 {[%clk 0:00:07]} 60. Kd3 {[%clk 0:00:04]}  f2 {[%clk 0:00:07]} 61. Ke2 {[%clk 0:00:05]}  h6 {[%clk 0:00:08]} 62. Kxf2 {[%clk 0:00:05]}  Ka7 {[%clk 0:00:08]} 63. Ke3 {[%clk 0:00:05]}  Kb6 {[%clk 0:00:09]} 64. Ke4 {[%clk 0:00:06]}  Ka7 {[%clk 0:00:08]} 65. Kf5 {[%clk 0:00:07]} 1-0


[Site "https://www.chess.com"]

[Event "Titled Tuesday Blitz July 4 Late 2023"]
[White "micke12a"]
[Black "Belov, Alexei"]
[BlackFideId "4128206"]
[WhiteElo "2379"]
[BlackElo "2517"]
[Result "0-1"]
[Round "3"]
[TimeControl "180+2"]
[Date "2023.07.04"]
[WhiteClock "0:00:10"]
[BlackClock "0:00:49"]
[Board "142"]

1. d4 {[%clk 0:03:00]}  e6 {[%clk 0:02:59]} 2. e4 {[%clk 0:02:59]}  d5 {[%clk 0:03:00]} 3. exd5 {[%clk 0:03:00]}  exd5 {[%clk 0:03:00]} 4. Bd3 {[%clk 0:03:00]}  Nf6 {[%clk 0:03:00]} 5. h3 {[%clk 0:03:01]}  c5 {[%clk 0:03:00]} 6. dxc5 {[%clk 0:03:01]}  Bxc5 {[%clk 0:03:00]} 7. Nf3 {[%clk 0:03:02]}  O-O {[%clk 0:03:00]} 8. O-O {[%clk 0:03:02]}  Nc6 {[%clk 0:03:00]} 9. a3 {[%clk 0:03:02]}  Re8 {[%clk 0:02:58]} 10. b4 {[%clk 0:03:02]}  Bb6 {[%clk 0:02:57]} 11. Bb2 {[%clk 0:03:01]}  Ne4 {[%clk 0:02:54]} 12. Nc3 {[%clk 0:02:50]}  Qf6 {[%clk 0:02:40]} 13. Nxe4 {[%clk 0:02:35]}  Qxb2 {[%clk 0:02:39]} 14. Nd6 {[%clk 0:02:35]}  Re7 {[%clk 0:02:19]} 15. Nxc8 {[%clk 0:02:26]}  Rxc8 {[%clk 0:02:18]} 16. Bf5 {[%clk 0:02:17]}  Rd8 {[%clk 0:02:16]} 17. Qd3 {[%clk 0:02:17]}  g6 {[%clk 0:02:15]} 18. Bg4 {[%clk 0:02:13]}  h5 {[%clk 0:02:15]} 19. Bxh5 {[%clk 0:02:02]}  gxh5 {[%clk 0:02:14]} 20. Qf5 {[%clk 0:01:57]}  Qg7 {[%clk 0:02:11]} 21. Qxh5 {[%clk 0:01:55]}  Qg6 {[%clk 0:01:59]} 22. Qh4 {[%clk 0:01:16]}  Re4 {[%clk 0:01:58]} 23. g4 {[%clk 0:01:16]}  Rde8 {[%clk 0:01:43]} 24. Rad1 {[%clk 0:01:12]}  Ne5 {[%clk 0:01:37]} 25. Ng5 {[%clk 0:00:53]}  Bd8 {[%clk 0:01:30]} 26. f4 {[%clk 0:00:48]}  Rxf4 {[%clk 0:01:21]} 27. Rxf4 {[%clk 0:00:37]}  Bxg5 {[%clk 0:01:21]} 28. Qg3 {[%clk 0:00:30]}  Bxf4 {[%clk 0:01:21]} 29. Qxf4 {[%clk 0:00:31]}  Qxc2 {[%clk 0:01:18]} 30. Rxd5 {[%clk 0:00:20]}  Ng6 {[%clk 0:01:06]} 31. Qf2 {[%clk 0:00:11]}  Qb1+ {[%clk 0:00:53]} 32. Kg2 {[%clk 0:00:11]}  Qe4+ {[%clk 0:00:53]} 33. Qf3 {[%clk 0:00:10]}  Nh4+ {[%clk 0:00:53]} 34. Kg3 {[%clk 0:00:10]}  Qxf3+ {[%clk 0:00:49]} 0-1


[Site "https://www.chess.com"]

[Event "Titled Tuesday Blitz July 4 Late 2023"]
[White "marik_spb"]
[Black "Coelho, Ramyres Santana"]
[BlackFideId "2120690"]
[WhiteElo "2500"]
[BlackElo "2305"]
[Result "1-0"]
[Round "3"]
[TimeControl "180+2"]
[Date "2023.07.04"]
[WhiteClock "0:00:48"]
[BlackClock "0:00:14"]
[Board "143"]

1. d4 {[%clk 0:02:59]}  Nf6 {[%clk 0:02:57]} 2. c4 {[%clk 0:03:00]}  g6 {[%clk 0:02:57]} 3. Nc3 {[%clk 0:02:57]}  d5 {[%clk 0:02:57]} 4. cxd5 {[%clk 0:02:54]}  Nxd5 {[%clk 0:02:58]} 5. e4 {[%clk 0:02:55]}  Nxc3 {[%clk 0:02:58]} 6. bxc3 {[%clk 0:02:56]}  Bg7 {[%clk 0:02:59]} 7. Be3 {[%clk 0:02:55]}  O-O {[%clk 0:03:00]} 8. Nf3 {[%clk 0:02:52]}  c5 {[%clk 0:03:01]} 9. Be2 {[%clk 0:02:48]}  cxd4 {[%clk 0:03:02]} 10. cxd4 {[%clk 0:02:48]}  Nc6 {[%clk 0:03:02]} 11. O-O {[%clk 0:02:45]}  Bg4 {[%clk 0:03:02]} 12. d5 {[%clk 0:02:42]}  Bxa1 {[%clk 0:03:00]} 13. Qxa1 {[%clk 0:02:43]}  Bxf3 {[%clk 0:02:44]} 14. Bxf3 {[%clk 0:02:44]}  Na5 {[%clk 0:02:43]} 15. Bh6 {[%clk 0:02:41]}  f6 {[%clk 0:02:43]} 16. Bxf8 {[%clk 0:02:39]}  Kxf8 {[%clk 0:02:43]} 17. e5 {[%clk 0:02:32]}  Rc8 {[%clk 0:02:37]} 18. Rc1 {[%clk 0:02:10]}  Rxc1+ {[%clk 0:02:31]} 19. Qxc1 {[%clk 0:02:10]}  fxe5 {[%clk 0:02:29]} 20. Qh6+ {[%clk 0:01:44]}  Kg8 {[%clk 0:02:27]} 21. h4 {[%clk 0:01:43]}  Qf8 {[%clk 0:02:22]} 22. Qe3 {[%clk 0:01:44]}  b6 {[%clk 0:01:31]} 23. Qxe5 {[%clk 0:01:42]}  Qf6 {[%clk 0:01:31]} 24. Qb8+ {[%clk 0:01:36]}  Kg7 {[%clk 0:01:31]} 25. Qxa7 {[%clk 0:01:35]}  Qxh4 {[%clk 0:01:21]} 26. Qxb6 {[%clk 0:01:29]}  Nc4 {[%clk 0:01:21]} 27. Qe6 {[%clk 0:01:27]}  Nd6 {[%clk 0:01:00]} 28. g3 {[%clk 0:01:11]}  Qg5 {[%clk 0:00:59]} 29. a4 {[%clk 0:01:07]}  Qc1+ {[%clk 0:00:53]} 30. Kg2 {[%clk 0:01:06]}  Qc7 {[%clk 0:00:53]} 31. Qe5+ {[%clk 0:01:01]}  Kg8 {[%clk 0:00:50]} 32. Bg4 {[%clk 0:00:59]}  Qd8 {[%clk 0:00:29]} 33. Be6+ {[%clk 0:00:55]}  Nf7 {[%clk 0:00:29]} 34. Qf4 {[%clk 0:00:55]}  Qf8 {[%clk 0:00:20]} 35. Qxf7+ {[%clk 0:00:53]}  Qxf7 {[%clk 0:00:21]} 36. a5 {[%clk 0:00:50]}  Qxe6 {[%clk 0:00:14]} 37. dxe6 {[%clk 0:00:51]}  Kg7 {[%clk 0:00:14]} 38. a6 {[%clk 0:00:52]}  Kf6 {[%clk 0:00:14]} 39. a7 {[%clk 0:00:52]}  Kxe6 {[%clk 0:00:15]} 40. a8=Q {[%clk 0:00:52]}  h6 {[%clk 0:00:15]} 41. Qg8+ {[%clk 0:00:50]}  Kf6 {[%clk 0:00:14]} 42. Qf8+ {[%clk 0:00:49]}  Kg5 {[%clk 0:00:15]} 43. Qxe7+ {[%clk 0:00:49]}  Kh5 {[%clk 0:00:14]} 44. Qh4# {[%clk 0:00:48]} 1-0


[Site "https://www.chess.com"]